fUSD/lending_fUSD_20250426
["ID","MTS","AMOUNT","RATE_DAILY","PERIOD"]
[359095120,1745705440786,-400.0,0.00019781,2]
[359095123,1745705440795,-400.0,0.00019781,2]
[359095126,1745705440805,-632.19,0.00019781,2]
[359095129,1745705440815,-500.0,0.00019781,2]
[359095132,1745705440825,-400.0,0.00019781,2]
[359095134,1745705440835,-410.86,0.00019781,2]
[359095137,1745705440845,-400.0,0.00019781,2]
[359095140,1745705440855,-464.54,0.00019781,2]
[359095143,1745705440864,-400.0,0.00019781,2]
[359095146,1745705440874,-400.0,0.00019781,2]
[359095148,1745705440884,-400.0,0.00019781,2]
[359095152,1745705440899,-400.0,0.00019781,2]
[359095155,1745705440909,-437.34,0.00019781,2]
[359095158,1745705440919,-400.0,0.00019781,2]
[359095161,1745705440930,-400.0,0.00019781,2]
[359095163,1745705440939,-539.83,0.00019781,2]
[359095165,1745705440949,-400.0,0.00019781,2]
[359095167,1745705440959,-400.0,0.00019781,2]
[359095169,1745705440969,-400.0,0.00019781,2]
[359095171,1745705440978,-400.0,0.00019781,2]
[359095173,1745705440988,-400.0,0.00019781,2]
[359095175,1745705440998,-400.0,0.00019781,2]
[359095177,1745705441008,-400.0,0.00019781,2]
[359095179,1745705441018,-600.3,0.00019781,2]
[359095181,1745705441028,-400.0,0.00019781,2]
[359095183,1745705441037,-522.78,0.00019781,2]
[359095185,1745705441048,-400.0,0.00019781,2]
[359095187,1745705441058,-400.0,0.00019781,2]
[359095189,1745705441067,-400.0,0.00019781,2]
[359095191,1745705441077,-400.0,0.00019781,2]
[359095193,1745705441088,-400.0,0.00019781,2]
[359095195,1745705441098,-400.0,0.00019781,2]
[359095197,1745705441108,-425.41,0.00019781,2]
[359095199,1745705441117,-400.0,0.00019781,2]
[359095201,1745705441127,-92341.66,0.00019781,2]
[359095203,1745705441137,-500.0,0.00019781,2]
[359095205,1745705441147,-512.02,0.00019781,2]
[359095207,1745705441157,-473.35,0.00019781,2]
[359095209,1745705441167,-400.0,0.00019781,2]
[359095211,1745705441177,-750.72,0.00019781,2]
[359095213,1745705441186,-400.0,0.00019781,2]
[359095215,1745705441196,-500.0,0.00019781,2]
[359095216,1745705441207,-400.0,0.00019781,2]
[359095219,1745705441218,-400.0,0.00019781,2]
[359095220,1745705441229,-400.0,0.00019781,2]
[359095222,1745705441239,-400.0,0.00019781,2]
[359095224,1745705441249,-500.0,0.00019781,2]
[359095226,1745705441259,-500.0,0.00019781,2]
[359095228,1745705441269,-500.0,0.00019781,2]
[359095230,1745705441279,-400.0,0.00019781,2]
[359095232,1745705441288,-460.98,0.00019781,2]
[359095234,1745705441298,-777.75,0.00019781,2]
[359095236,1745705441307,-3462.36,0.00019781,2]
[359095238,1745705441317,-400.0,0.00019781,2]
[359095240,1745705441326,-500.0,0.00019781,2]
[359095243,1745705441341,-680.05,0.00019781,2]
[359095245,1745705441351,-736.63,0.00019781,2]
[359095247,1745705441361,-1376.53,0.00019781,2]
[359095249,1745705441371,-500.0,0.00019781,2]
[359095251,1745705441381,-500.0,0.00019781,2]
[359095253,1745705441391,-500.0,0.00019781,2]
[359095255,1745705441403,-400.0,0.00019781,2]
[359095257,1745705441414,-400.0,0.00019781,2]
[359095259,1745705441424,-400.0,0.00019781,2]
[359095261,1745705441434,-614.5,0.00019781,2]
[359095263,1745705441446,-400.0,0.00019781,2]
[359095265,1745705441456,-410.18,0.00019781,2]
[359095267,1745705441466,-500.0,0.00019781,2]
[359095269,1745705441477,-400.0,0.00019781,2]
[359095271,1745705441488,-400.0,0.00019781,2]
[359095273,1745705441498,-419.6,0.00019781,2]
[359095275,1745705441508,-400.0,0.00019781,2]
[359095277,1745705441518,-754.62,0.00019781,2]
[359095279,1745705441528,-600.04,0.00019781,2]
[359095281,1745705441537,-550.86,0.00019781,2]
[359095283,1745705441547,-400.0,0.00019781,2]
[359095285,1745705441558,-844.79,0.00019781,2]
[359095287,1745705441568,-400.0,0.00019781,2]
[359095289,1745705441578,-608.94,0.00019781,2]
[359095291,1745705441588,-400.0,0.00019781,2]
[359095293,1745705441599,-400.0,0.00019781,2]
[359095295,1745705441609,-400.0,0.00019781,2]
[359095297,1745705441619,-486.21,0.00019781,2]
[359095299,1745705441630,-565.75,0.00019781,2]
[359095301,1745705441640,-782.99,0.00019781,2]
[359095303,1745705441650,-400.0,0.00019781,2]
[359095305,1745705441660,-540.94,0.00019781,2]
[359095307,1745705441670,-150.0,0.00019781,2]
[359095309,1745705441680,-942.99,0.00019781,2]
[359095311,1745705441690,-400.0,0.00019781,2]
[359095313,1745705441701,-214.34432765,0.00019781,2]
[359095315,1745705441711,-400.0,0.00019781,2]
[359095317,1745705441720,-150.0,0.00019781,2]
[359095319,1745705441730,-510.8,0.00019781,2]
[359095321,1745705441739,-500.0,0.00019781,2]
[359095323,1745705441749,-400.0,0.00019781,2]
[359095325,1745705441758,-590.81,0.00019781,2]
[359095327,1745705441768,-400.0,0.00019781,2]
[359095330,1745705441790,-936.75,0.00019781,2]
[359095332,1745705441801,-150.0,0.00019781,2]
[359095334,1745705441812,-400.0,0.00019781,2]
[359095336,1745705441822,-400.0,0.00019781,2]
[359095338,1745705441833,-400.0,0.00019781,2]
[359095340,1745705441843,-400.0,0.00019781,2]
[359095342,1745705441854,-1176.41,0.00019781,2]
[359095344,1745705441865,-529.2,0.00019781,2]
[359095346,1745705441875,-527.17,0.00019781,2]
[359095347,1745705441886,-400.0,0.00019781,2]
[359095348,1745705441896,-753.78,0.00019781,2]
[359095349,1745705441907,-400.0,0.00019781,2]
[359095350,1745705441917,-500.0,0.00019781,2]
[359095351,1745705441928,-400.0,0.00019781,2]
[359095352,1745705441938,-500.0,0.00019781,2]
[359095353,1745705441949,-641.98,0.00019781,2]
[359095354,1745705441972,-400.0,0.00019781,2]
[359095355,1745705441983,-520.73,0.00019781,2]
[359095356,1745705441993,-400.0,0.00019781,2]
[359095357,1745705442004,-400.0,0.00019781,2]
[359095358,1745705442014,-400.0,0.00019781,2]
[359095359,1745705442025,-400.0,0.00019781,2]
[359095360,1745705442035,-400.0,0.00019781,2]
[359095361,1745705442046,-400.0,0.00019781,2]
[359095362,1745705442056,-894.18,0.00019781,2]
[359095363,1745705442066,-400.0,0.00019781,2]
[359095365,1745705442076,-473.18,0.00019781,2]
[359095366,1745705442086,-400.0,0.00019781,2]
[359095368,1745705442097,-400.0,0.00019781,2]
[359095370,1745705442107,-477.38,0.00019781,2]
[359095372,1745705442117,-671.65,0.00019781,2]
[359095374,1745705442128,-823.04,0.00019781,2]
[359095376,1745705442138,-400.0,0.00019781,2]
[359095378,1745705442147,-400.0,0.00019781,2]
[359095380,1745705442157,-400.0,0.00019781,2]
[359095382,1745705442167,-796.39,0.00019781,2]
[359095384,1745705442177,-611.52,0.00019781,2]
[359095386,1745705442187,-400.0,0.00019781,2]
[359095388,1745705442197,-400.0,0.00019781,2]
[359095390,1745705442207,-437.54,0.00019781,2]
[359095393,1745705442222,-434.65,0.00019781,2]
[359095395,1745705442233,-2224.31,0.00019781,2]
[359095397,1745705442243,-400.0,0.00019781,2]
[359095399,1745705442252,-148359.81725471,0.00019781,2]
[359095455,1745705442741,-8361.44706171,0.00019781,2]
[359095458,1745705442751,-319.09030705,0.00019781,2]
[359095459,1745705442760,-400.0,0.00019782,2]
[359095462,1745705442770,-400.0,0.00019782,2]
[359095465,1745705442779,-400.0,0.00019782,2]
[359095468,1745705442789,-400.0,0.00019782,2]
[359095470,1745705442798,-2458.47,0.00019782,2]
[359095473,1745705442807,-400.0,0.00019782,2]
[359095476,1745705442817,-443.48,0.00019782,2]
[359095479,1745705442827,-3887.57,0.00019782,2]
[359095481,1745705442836,-677.79,0.00019782,2]
[359095483,1745705442848,-541.29,0.00019782,2]
[359095485,1745705442857,-441.81,0.00019782,2]
[359095487,1745705442867,-400.0,0.00019782,2]
[359095489,1745705442877,-598.64,0.00019782,2]
[359095491,1745705442887,-468.93,0.00019782,2]
[359095493,1745705442897,-749.78,0.00019782,2]
[359095495,1745705442907,-478.55,0.00019782,2]
[359095497,1745705442917,-434.95,0.00019782,2]
[359095499,1745705442926,-400.0,0.00019782,2]
[359095501,1745705442936,-400.0,0.00019782,2]
[359095504,1745705442949,-379.28087059,0.00019782,2]
[359095505,1745705442958,-400.0,0.00019783,2]
[359095508,1745705442968,-400.0,0.00019783,2]
[359095509,1745705442977,-400.0,0.00019783,2]
[359095511,1745705442988,-400.0,0.00019783,2]
[359095513,1745705442997,-440.67,0.00019783,2]
[359095515,1745705443007,-400.0,0.00019783,2]
[359095517,1745705443016,-400.0,0.00019783,2]
[359095519,1745705443025,-400.0,0.00019783,2]
[359095521,1745705443035,-400.0,0.00019783,2]
[359095523,1745705443045,-500.0,0.00019783,2]
[359095525,1745705443055,-691.48,0.00019783,2]
[359095527,1745705443064,-400.0,0.00019783,2]
[359095529,1745705443073,-500.0,0.00019783,2]
[359095531,1745705443083,-400.0,0.00019783,2]
[359095533,1745705443093,-400.0,0.00019783,2]
[359095535,1745705443104,-400.0,0.00019783,2]
[359095537,1745705443113,-744.3,0.00019783,2]
[359095539,1745705443124,-500.0,0.00019783,2]
[359095541,1745705443134,-400.0,0.00019783,2]
[359095543,1745705443144,-597.82,0.00019783,2]
[359095545,1745705443154,-400.0,0.00019783,2]
[359095547,1745705443164,-500.0,0.00019783,2]
[359095549,1745705443173,-400.0,0.00019783,2]
[359095551,1745705443183,-400.0,0.00019783,2]
[359095553,1745705443193,-400.0,0.00019783,2]
[359095555,1745705443202,-433.01,0.00019783,2]
[359095557,1745705443212,-518.00734972,0.00019783,2]
[359095559,1745705443222,-400.0,0.00019783,2]
[359095561,1745705443232,-400.0,0.00019783,2]
[359095563,1745705443242,-400.0,0.00019783,2]
[359095565,1745705443251,-400.0,0.00019783,2]
[359095567,1745705443260,-595.13,0.00019783,2]
[359095569,1745705443270,-520.05285185,0.00019783,2]
[359095571,1745705443279,-546.31,0.00019783,2]
[359095573,1745705443288,-400.0,0.00019783,2]
[359095575,1745705443298,-421.2,0.00019783,2]
[359095577,1745705443307,-400.0,0.00019783,2]
[359095579,1745705443317,-400.0,0.00019783,2]
[359095581,1745705443327,-711.44,0.00019783,2]
[359095583,1745705443336,-400.0,0.00019783,2]
[359095585,1745705443346,-730.12,0.00019783,2]
[359095588,1745705443355,-400.0,0.00019783,2]
[359095591,1745705443365,-400.0,0.00019783,2]
[359095594,1745705443375,-400.0,0.00019783,2]
[359095596,1745705443385,-400.0,0.00019783,2]
[359095598,1745705443397,-400.0,0.00019783,2]
[359095600,1745705443407,-400.0,0.00019783,2]
[359095602,1745705443416,-400.0,0.00019783,2]
[359095604,1745705443426,-500.0,0.00019783,2]
[359095606,1745705443437,-400.0,0.00019783,2]
[359095608,1745705443446,-400.0,0.00019783,2]
[359095610,1745705443456,-400.0,0.00019783,2]
[359095612,1745705443465,-400.0,0.00019783,2]
[359095614,1745705443476,-400.0,0.00019783,2]
[359095616,1745705443485,-400.0,0.00019783,2]
[359095618,1745705443495,-500.0,0.00019783,2]
[359095620,1745705443505,-238.91678823,0.00019783,2]
[359095622,1745705443516,-516.95,0.00019783,2]
[359095623,1745705443525,-518.58376662,0.00019783,2]
[359095626,1745705443535,-400.0,0.00019783,2]
[359095627,1745705443545,-400.0,0.00019783,2]
[359095629,1745705443555,-500.0,0.00019783,2]
[359095632,1745705443566,-400.0,0.00019783,2]
[359095633,1745705443576,-400.0,0.00019783,2]
[359095636,1745705443586,-400.0,0.00019783,2]
[359095638,1745705443596,-400.0,0.00019783,2]
[359095640,1745705443606,-500.0,0.00019783,2]
[359095641,1745705443616,-251.69064904,0.00019783,2]
[359095644,1745705443626,-400.0,0.00019783,2]
[359095646,1745705443636,-400.0,0.00019783,2]
[359095648,1745705443646,-502.21703479,0.00019783,2]
[359095650,1745705443656,-400.0,0.00019783,2]
[359095652,1745705443665,-400.0,0.00019783,2]
[359095654,1745705443675,-400.0,0.00019783,2]
[359095656,1745705443685,-400.0,0.00019783,2]
[359095657,1745705443695,-400.11,0.00019783,2]
[359095659,1745705443704,-400.0,0.00019783,2]
[359095662,1745705443714,-400.0,0.00019783,2]
[359095664,1745705443724,-400.0,0.00019783,2]
[359095665,1745705443734,-500.0,0.00019783,2]
[359095667,1745705443744,-400.0,0.00019783,2]
[359095669,1745705443753,-395.04628918,0.00019783,2]
[359095672,1745705443763,-515.42272426,0.00019783,2]
[359095673,1745705443772,-400.0,0.00019783,2]
[359095675,1745705443782,-400.0,0.00019783,2]
[359095677,1745705443792,-400.0,0.00019783,2]
[359095679,1745705443801,-416.25,0.00019783,2]
[359095681,1745705443811,-400.0,0.00019783,2]
[359095683,1745705443821,-400.0,0.00019783,2]
[359095685,1745705443831,-400.0,0.00019783,2]
[359095687,1745705443841,-400.0,0.00019783,2]
[359095689,1745705443851,-400.0,0.00019783,2]
[359095691,1745705443860,-500.0,0.00019783,2]
[359095693,1745705443870,-400.0,0.00019783,2]
[359095695,1745705443880,-400.0,0.00019783,2]
[359095697,1745705443890,-400.0,0.00019783,2]
[359095699,1745705443899,-400.0,0.00019783,2]
[359095701,1745705443909,-400.0,0.00019783,2]
[359095703,1745705443919,-502.9539834,0.00019783,2]
[359095705,1745705443929,-400.0,0.00019783,2]
[359095707,1745705443939,-500.0,0.00019783,2]
[359095709,1745705443949,-400.0,0.00019783,2]
[359095711,1745705443959,-465.2,0.00019783,2]
[359095713,1745705443969,-427.87,0.00019783,2]
[359095715,1745705443979,-400.0,0.00019783,2]
[359095718,1745705443988,-400.0,0.00019783,2]
[359095720,1745705443998,-400.0,0.00019783,2]
[359095722,1745705444007,-500.0,0.00019783,2]
[359095723,1745705444017,-400.0,0.00019783,2]
[359095726,1745705444028,-500.0,0.00019783,2]
[359095728,1745705444038,-400.0,0.00019783,2]
[359095730,1745705444048,-500.0,0.00019783,2]
[359095732,1745705444058,-400.0,0.00019783,2]
[359095734,1745705444067,-400.0,0.00019783,2]
[359095736,1745705444077,-400.0,0.00019783,2]
[359095737,1745705444087,-500.0,0.00019783,2]
[359095740,1745705444097,-400.0,0.00019783,2]
[359095742,1745705444106,-400.0,0.00019783,2]
[359095743,1745705444116,-400.0,0.00019783,2]
[359095745,1745705444126,-400.0,0.00019783,2]
[359095747,1745705444136,-400.0,0.00019783,2]
[359095749,1745705444146,-400.0,0.00019783,2]
[359095752,1745705444156,-400.0,0.00019783,2]
[359095753,1745705444166,-500.0,0.00019783,2]
[359095755,1745705444177,-1538.63,0.00019783,2]
[359095757,1745705444187,-507.73663296,0.00019783,2]
[359095759,1745705444196,-400.0,0.00019783,2]
[359095761,1745705444206,-400.0,0.00019783,2]
[359095763,1745705444215,-400.0,0.00019783,2]
[359095765,1745705444225,-400.0,0.00019783,2]
[359095767,1745705444235,-400.0,0.00019783,2]
[359095769,1745705444244,-400.0,0.00019783,2]
[359095771,1745705444254,-408.3,0.00019783,2]
[359095773,1745705444263,-510.4999362,0.00019783,2]
[359095775,1745705444273,-499.48,0.00019783,2]
[359095777,1745705444283,-400.0,0.00019783,2]
[359095779,1745705444292,-400.0,0.00019783,2]
[359095781,1745705444302,-400.0,0.00019783,2]
[359095784,1745705444312,-400.0,0.00019783,2]
[359095786,1745705444322,-429.37,0.00019783,2]
[359095807,1745705444581,-528.99536645,0.00019783,2]
[359095809,1745705444592,-400.0,0.00019783,2]
[359095811,1745705444604,-258.1716185,0.00019783,2]
[359095813,1745705444614,-633.48,0.00019783,2]
[359095815,1745705444623,-400.0,0.00019783,2]
[359095817,1745705444633,-400.0,0.00019783,2]
[359095819,1745705444644,-400.0,0.00019783,2]
[359095821,1745705444653,-505.80791502,0.00019783,2]
[359095823,1745705444663,-400.0,0.00019783,2]
[359095825,1745705444674,-400.0,0.00019783,2]
[359095827,1745705444685,-529.05749259,0.00019783,2]
[359095829,1745705444695,-507.27729147,0.00019783,2]
[359095832,1745705444705,-400.0,0.00019783,2]
[359095833,1745705444714,-400.0,0.00019783,2]
[359095836,1745705444724,-400.0,0.00019783,2]
[359095838,1745705444734,-400.0,0.00019783,2]
[359095840,1745705444744,-400.0,0.00019783,2]
[359095842,1745705444754,-500.0,0.00019783,2]
[359095844,1745705444764,-400.0,0.00019783,2]
[359095846,1745705444775,-181.05139569,0.00019783,2]
[359095848,1745705444785,-400.0,0.00019783,2]
[359095850,1745705444795,-608.65,0.00019783,2]
[359095852,1745705444805,-300.0,0.00019783,2]
[359095854,1745705444814,-462.21,0.00019783,2]
[359095856,1745705444824,-400.0,0.00019783,2]
[359095858,1745705444834,-500.0,0.00019783,2]
[359095860,1745705444843,-400.0,0.00019783,2]
[359095862,1745705444853,-400.0,0.00019783,2]
[359095864,1745705444863,-500.0,0.00019783,2]
[359095866,1745705444873,-166.08524711,0.00019783,2]
[359095868,1745705444883,-389.02463321,0.00019783,2]
[359095870,1745705444893,-400.0,0.00019783,2]
[359095872,1745705444903,-400.0,0.00019783,2]
[359095874,1745705444913,-400.0,0.00019783,2]
[359095876,1745705444923,-400.0,0.00019783,2]
[359095878,1745705444933,-400.0,0.00019783,2]
[359095880,1745705444944,-627.22,0.00019783,2]
[359095882,1745705444954,-400.0,0.00019783,2]
[359095884,1745705444964,-400.0,0.00019783,2]
[359095886,1745705444974,-662.85,0.00019783,2]
[359095888,1745705444984,-400.0,0.00019783,2]
[359095890,1745705444994,-400.0,0.00019783,2]
[359095892,1745705445003,-400.0,0.00019783,2]
[359095895,1745705445018,-764.35,0.00019783,2]
[359095897,1745705445027,-400.0,0.00019783,2]
[359095899,1745705445038,-400.0,0.00019783,2]
[359095901,1745705445048,-400.0,0.00019783,2]
[359095903,1745705445059,-500.0,0.00019783,2]
[359095905,1745705445068,-400.0,0.00019783,2]
[359095907,1745705445078,-400.0,0.00019783,2]
[359095909,1745705445089,-400.0,0.00019783,2]
[359095911,1745705445100,-400.0,0.00019783,2]
[359095914,1745705445110,-500.0,0.00019783,2]
[359095916,1745705445120,-400.0,0.00019783,2]
[359095918,1745705445129,-400.0,0.00019783,2]
[359095920,1745705445139,-250.63054389,0.00019783,2]
[359095922,1745705445149,-500.0,0.00019783,2]
[359095924,1745705445160,-427.47655782,0.00019783,2]
[359095926,1745705445170,-400.0,0.00019783,2]
[359095928,1745705445180,-500.0,0.00019783,2]
[359095930,1745705445190,-400.0,0.00019783,2]
[359095932,1745705445200,-500.0,0.00019783,2]
[359095934,1745705445210,-400.0,0.00019783,2]
[359095936,1745705445219,-400.0,0.00019783,2]
[359095938,1745705445229,-424.95,0.00019783,2]
[359095940,1745705445239,-579.31,0.00019783,2]
[359095942,1745705445250,-400.0,0.00019783,2]
[359095944,1745705445259,-400.0,0.00019783,2]
[359095946,1745705445269,-400.0,0.00019783,2]
[359095948,1745705445278,-500.0,0.00019783,2]
[359095950,1745705445288,-400.0,0.00019783,2]
[359095952,1745705445298,-500.0,0.00019783,2]
[359095954,1745705445308,-400.0,0.00019783,2]
[359095956,1745705445318,-458.52,0.00019783,2]
[359095958,1745705445329,-400.0,0.00019783,2]
[359095960,1745705445339,-487.91,0.00019783,2]
[359095962,1745705445349,-400.0,0.00019783,2]
[359095964,1745705445359,-500.0,0.00019783,2]
[359095966,1745705445369,-400.0,0.00019783,2]
[359095968,1745705445379,-400.0,0.00019783,2]
[359095971,1745705445390,-400.0,0.00019783,2]
[359095973,1745705445405,-400.0,0.00019783,2]
[359095975,1745705445415,-420.39,0.00019783,2]
[359095976,1745705445424,-893.25,0.00019783,2]
[359095979,1745705445435,-76804.72,0.00019783,2]
[359095981,1745705445446,-4276.59,0.00019783,2]
[359095983,1745705445456,-1771.99,0.00019783,2]
[359095986,1745705445480,-500.0,0.00019783,2]
[359095988,1745705445491,-500.0,0.00019783,2]
[359095990,1745705445502,-380.18,0.00019783,2]
[359095992,1745705445512,-151.0,0.00019784,2]
[359095994,1745705445523,-536.94466659,0.00019784,2]
[359095997,1745705445533,-400.0,0.00019784,2]
[359095999,1745705445543,-400.0,0.00019784,2]
[359096001,1745705445553,-730.12,0.00019784,2]
[359096003,1745705445564,-500.0,0.00019784,2]
[359096005,1745705445574,-500.0,0.00019784,2]
[359096007,1745705445584,-429.78,0.00019784,2]
[359096010,1745705445594,-649.43,0.00019784,2]
[359096013,1745705445605,-531.85,0.00019784,2]
[359096015,1745705445615,-500.0,0.00019784,2]
[359096017,1745705445625,-153.144848,0.00019785,2]
[359096019,1745705445636,-400.0,0.00019785,2]
[359096021,1745705445646,-400.0,0.00019785,2]
[359096023,1745705445656,-400.0,0.00019785,2]
[359096025,1745705445667,-400.0,0.00019785,2]
[359096027,1745705445677,-488.20468367,0.00019785,2]
[359096031,1745705445687,-400.0,0.00019785,2]
[359096033,1745705445697,-400.0,0.00019785,2]
[359096035,1745705445707,-400.0,0.00019785,2]
[359096037,1745705445716,-500.0,0.00019785,2]
[359096039,1745705445726,-500.0,0.00019785,2]
[359096041,1745705445736,-796.39,0.00019785,2]
[359096043,1745705445746,-6732.2910677,0.00019786,2]
[359096045,1745705445756,-1111.7646632,0.00019786,2]
[359096047,1745705445766,-13141.011822,0.00019786,2]
[359096049,1745705445777,-121198.0341666,0.00019786,2]
[359096051,1745705445786,-28034.1797494,0.00019786,2]
[359096053,1745705445796,-151.0,0.00019786,2]
[359096055,1745705445806,-151.0,0.00019786,2]
[359096057,1745705445816,-155.922673,0.00019786,2]
[359096059,1745705445826,-299.45988,0.00019786,2]
[359096061,1745705445837,-358.695244,0.00019786,2]
[359096063,1745705445847,-358.695244,0.00019786,2]
[359096066,1745705445859,-151.0,0.00019786,2]
[359096068,1745705445868,-151.0,0.00019786,2]
[359096070,1745705445879,-151.0,0.00019786,2]
[359096072,1745705445896,-151.0,0.00019786,2]
[359096074,1745705445907,-151.0,0.00019786,2]
[359096076,1745705445919,-151.0,0.00019786,2]
[359096078,1745705445930,-151.0,0.00019786,2]
[359096081,1745705445941,-151.0,0.00019786,2]
[359096083,1745705445952,-151.0,0.00019786,2]
[359096085,1745705445962,-151.0,0.00019786,2]
[359096087,1745705445972,-471.545021,0.00019786,2]
[359096089,1745705445983,-258.871286,0.00019786,2]
[359096091,1745705445993,-471.545021,0.00019786,2]
[359096093,1745705446003,-258.871286,0.00019786,2]
[359096095,1745705446015,-156.311182,0.00019786,2]
[359096097,1745705446025,-151.0,0.00019786,2]
[359096100,1745705446036,-161.549531,0.00019786,2]
[359096102,1745705446047,-151.0,0.00019786,2]
[359096104,1745705446058,-151.0,0.00019786,2]
[359096106,1745705446069,-151.0,0.00019786,2]
[359096108,1745705446079,-151.0,0.00019786,2]
[359096110,1745705446089,-151.0,0.00019786,2]
[359096112,1745705446099,-151.0,0.00019786,2]
[359096114,1745705446110,-151.0,0.00019786,2]
[359096116,1745705446120,-151.0,0.00019786,2]
[359096118,1745705446130,-919.214809,0.00019786,2]
[359096120,1745705446141,-919.214809,0.00019786,2]
[359096122,1745705446151,-151.0,0.00019786,2]
[359096124,1745705446161,-151.0,0.00019786,2]
[359096127,1745705446171,-151.0,0.00019786,2]
[359096129,1745705446184,-151.0,0.00019786,2]
[359096131,1745705446194,-151.0,0.00019786,2]
[359096133,1745705446204,-155.070762,0.00019786,2]
[359096135,1745705446214,-151.0,0.00019786,2]
[359096137,1745705446224,-377.35392646,0.0001979,2]
[359096139,1745705446234,-614.739318,0.00019792,2]
[359096141,1745705446244,-599.395326,0.00019792,2]
[359096143,1745705446253,-730.12,0.00019793,2]
[359096145,1745705446263,-500.0,0.00019793,2]
[359096147,1745705446273,-500.0,0.00019793,2]
[359096149,1745705446283,-500.0,0.00019793,2]
[359096151,1745705446294,-614.739318,0.00019793,2]
[359096153,1745705446304,-599.395326,0.00019793,2]
[359096155,1745705446315,-215.28252671,0.00019793,2]
[359096157,1745705446325,-730.12,0.00019794,2]
[359096160,1745705446340,-500.0,0.00019794,2]
[359096162,1745705446349,-500.0,0.00019794,2]
[359096164,1745705446360,-500.0,0.00019794,2]
[359096166,1745705446370,-614.739318,0.00019795,2]
[359096168,1745705446381,-599.395326,0.00019795,2]
[359096170,1745705446392,-614.739318,0.00019797,2]
[359096172,1745705446406,-599.395326,0.00019797,2]
[359096175,1745705446416,-614.739318,0.00019798,2]
[359096177,1745705446426,-599.395326,0.00019798,2]
[359096179,1745705446436,-500.0,0.00019798,2]
[359096181,1745705446446,-500.0,0.00019798,2]
[359096183,1745705446456,-796.39,0.00019798,2]
[359096185,1745705446467,-735.8646718,0.00019799,2]
[359096187,1745705446478,-730.12,0.00019799,2]
[359096189,1745705446488,-730.12,0.00019799,2]
[359096191,1745705446499,-730.12,0.00019799,2]
[359096193,1745705446508,-730.12,0.00019799,2]
[359096195,1745705446519,-730.12,0.00019799,2]
[359096197,1745705446529,-500.0,0.00019799,2]
[359096199,1745705446539,-500.0,0.00019799,2]
[359096201,1745705446549,-500.0,0.00019799,2]
[359096203,1745705446559,-500.0,0.00019799,2]
[359096204,1745705446570,-500.0,0.00019799,2]
[359096205,1745705446580,-500.0,0.00019799,2]
[359096206,1745705446590,-500.0,0.00019799,2]
[359096207,1745705446600,-500.0,0.00019799,2]
[359096208,1745705446613,-500.0,0.00019799,2]